[Event "Hungarian Youth-ch II 2024"]
[Site "Szolnok"]
[Date "2024.04.01"]
[Round "1.1"]
[White "Bolla, Zsofia"]
[Black "Kiss, Inez"]
[Result "0-1"]
[ECO "C08"]
[WhiteElo "1615"]
[BlackElo "1806"]
[Annotator "NA"]
[PlyCount "92"]
[EventDate "2024.03.31"]
[EventType "swiss"]
[EventCountry "HUN"]
[SourceTitle "playchess.com"]
[Source "ChessBase"]
[SourceQuality "1"]
[TimeControl "5400+30"]

1. e4 {[%emt 0:00:02]} e6 {[%emt 0:00:12]} 2. d4 {[%emt 0:00:05]} d5 {[%emt 0:00:11]} 3. Nd2 {[%emt 0:00:05]} c5 {[%emt 0:00:13]} 4. exd5 {[%emt 0:00:08]} exd5 {[%emt 0:00:10]} 5. dxc5 {[%emt 0:00:07]} Bxc5 {[%emt 0:00:19]} 6. Bd3 {[%emt 0:00:48]} Nf6 {[%emt 0:00:41]} 7. Ngf3 {[%emt 0:00:18]} O-O {[%emt 0:00:24]} 8. O-O {[%emt 0:00:09]} Nc6 {[%emt 0:00:34]} 9. Nb3 {[%emt 0:02:32]} Bd6 {[%emt 0:02:57]} 10. Bg5 {[%emt 0:00:24]} Bg4 {[%emt 0:01:51]} 11. h3 {[%emt 0:02:07]} Bh5 {[%emt 0:01:25]} 12. Re1 {[%emt 0:01:04]} Be7 {[%emt 0:10:03]} 13. Nbd2 {[%emt 0:05:37]} Nb4 {[%emt 0:07:53]} 14. Be2 {[%emt 0:03:35]} Bg6 {[%emt 0:02:25]} 15. Nd4 {[%emt 0:00:39]} h6 {[%emt 0:11:15]} 16. Bh4 {[%emt 0:00:43]} Rc8 {[%emt 0:03:33]} 17. c3 {[%emt 0:06:29]} Nc6 {[%emt 0:04:21]} 18. N2f3 {[%emt 0:01:55]} Ne4 {[%emt 0:05:56]} 19. Bxe7 {[%emt 0:13:26]} Qxe7 {[%emt 0:01:16]} 20. Bd3 {[%emt 0:03:29]} Qf6 {[%emt 0:02:34]} 21. Nc2 {[%emt 0:10:22]} Rfe8 {[%emt 0:10:55]} 22. Ne3 {[%emt 0:02:30]} Rcd8 {[%emt 0:04:52]} 23. Ng4 {[%emt 0:04:19]} Qf4 {[%emt 0:03:43]} 24. Qc2 {[%emt 0:01:42]} h5 {[%emt 0:05:09]} 25. Ne3 {[%emt 0:01:11]} d4 {[%emt 0:02:34]} 26. cxd4 {[%emt 0:05:35]} Nb4 {[%emt 0:02:05]} 27. Qb3 {[%emt 0:04:51]} Nxd3 {[%emt 0:00:09]} 28. Qxd3 {[%emt 0:00:10]} Nxf2 {[%emt 0:02:18]} 29. Qe2 {[%emt 0:06:32]} Nd3 {[%emt 0:00:45]} 30. a3 {[%emt 0:10:32]} Nxe1 {[%emt 0:00:45]} 31. Rxe1 {[%emt 0:00:09]} Re4 {[%emt 0:01:30]} 32. Qd2 {[%emt 0:01:34]} Rde8 {[%emt 0:01:18]} 33. Kf2 {[%emt 0:00:43]} h4 {[%emt 0:00:26]} 34. Re2 {[%emt 0:00:57]} Bh5 {[%emt 0:01:12]} 35. Re1 {[%emt 0:04:26]} Bxf3 {[%emt 0:00:17]} 36. gxf3 {[%emt 0:02:39]} Qh2+ {[%emt 0:00:08]} 37. Ng2 {[%emt 0:00:13]} Qg3+ {[%emt 0:00:31]} 38. Kf1 {[%emt 0:00:21]} Qxf3+ {[%emt 0:01:15]} 39. Qf2 {[%emt 0:00:42]} Rxe1+ {[%emt 0:00:09]} 40. Nxe1 {[%emt 0:00:08]} Qh1+ {[%emt 0:00:22]} 41. Qg1 {[%emt 0:00:16]} Rxe1+ {[%emt 0:00:04]} 42. Kf2 {[%emt 0:00:11]} Qxg1+ {[%emt 0:00:06]} 43. Kf3 {[%emt 0:00:09]} Re3+ {[%emt 0:00:03]} 44. Kf4 {[%emt 0:00:05]} Qg3+ {[%emt 0:00:07]} 45. Kf5 {[%emt 0:00:07]} g6+ {[%emt 0:00:10]} 46. Kf6 {[%emt 0:00:08]} Re6# {[%emt 0:00:07]} 0-1

[Event "Hungarian Youth-ch II 2024"]
[Site "Szolnok"]
[Date "2024.04.01"]
[Round "1.2"]
[White "Biro, Beata"]
[Black "Farkas, Sara"]
[Result "1-0"]
[ECO "C03"]
[WhiteElo "1760"]
[BlackElo "1707"]
[Annotator "NA RC"]
[PlyCount "63"]
[EventDate "2024.03.31"]
[EventType "swiss"]
[EventCountry "HUN"]
[SourceTitle "playchess.com"]
[Source "ChessBase"]
[SourceQuality "1"]
[TimeControl "5400+30"]

1. e4 {[%emt 0:00:02]} e6 {[%emt 0:00:05]} 2. d4 {[%emt 0:00:04]} d5 {[%emt 0:00:05]} 3. Nd2 {[%emt 0:00:08]} Nc6 {[%emt 0:00:07]} 4. c3 {[%emt 0:00:32]} e5 {[%emt 0:00:20]} 5. Ngf3 {[%emt 0:02:36]} exd4 {[%emt 0:07:49]} 6. cxd4 {[%emt 0:00:53]} Bb4 {[%emt 0:06:32]} 7. e5 {[%emt 0:04:56]} Bg4 {[%emt 0:07:12]} 8. Bb5 {[%emt 0:00:31]} Nge7 {[%emt 0:04:20]} 9. O-O {[%emt 0:01:51]} O-O {[%emt 0:04:44]} 10. Nb3 {[%emt 0:02:49]} a6 {[%emt 0:05:27]} 11. Be2 {[%emt 0:03:02]} Ng6 {[%emt 0:06:11]} 12. a3 {[%emt 0:01:43]} Be7 {[%emt 0:02:36]} 13. h3 {[%emt 0:03:07]} Bf5 {[%emt 0:05:13]} 14. Ne1 {[%emt 0:04:17]} a5 {[%emt 0:07:14]} 15. Be3 {[%emt 0:05:19]} Bg5 {[%emt 0:10:41]} 16. f4 {[%emt 0:01:55]} Bh4 {[%emt 0:04:04]} 17. Bd3 {[%emt 0:05:21]} Bxd3 {[%emt 0:04:41]} 18. Nxd3 {[%emt 0:00:17]} f5 {[%emt 0:04:50]} 19. Nbc5 {[%emt 0:01:47]} Qc8 {[%emt 0:01:46]} 20. Qb3 {[%emt 0:00:46]} Rd8 {[%emt 0:03:25]} 21. Qxb7 {[%emt 0:02:20]} Qxb7 {[%emt 0:00:53]} 22. Nxb7 {[%emt 0:00:07]} Rdb8 {[%emt 0:01:10]} 23. Nbc5 {[%emt 0:00:38]} Rb6 {[%emt 0:03:37]} 24. Rac1 {[%emt 0:02:00]} Nd8 {[%emt 0:03:01]} 25. Rf3 {[%emt 0:05:48]} c6 {[%emt 0:01:10]} 26. g4 {[%emt 0:01:13]} Ne7 {[%emt 0:01:29]} 27. Rc2 {[%emt 0:07:03]} h6 {[%emt 0:01:57]} 28. g5 {[%emt 0:04:21]} hxg5 {[%emt 0:00:54]} 29. fxg5 {[%emt 0:00:02]} g6 {[%emt 0:00:20]} 30. Rg2 {[%emt 0:00:29]} Nf7 {[%emt 0:00:49]} 31. e6 {[%emt 0:00:18]} Nd6 {[%emt 0:00:59]} 32. Rf4 {[%emt 0:01:18]} 1-0

[Event "Hungarian Youth-ch II 2024"]
[Site "Szolnok"]
[Date "2024.04.01"]
[Round "1.3"]
[White "Kincses, Emma"]
[Black "Balogh, Gerda"]
[Result "1-0"]
[ECO "A20"]
[WhiteElo "1678"]
[BlackElo "1793"]
[Annotator "NA"]
[PlyCount "63"]
[EventDate "2024.03.31"]
[EventType "swiss"]
[EventCountry "HUN"]
[SourceTitle "playchess.com"]
[Source "ChessBase"]
[SourceQuality "1"]
[TimeControl "5400+30"]

1. c4 {[%emt 0:00:01]} e5 {[%emt 0:00:04]} 2. g3 {[%emt 0:00:04]} Nf6 {[%emt 0:00:06]} 3. Bg2 {[%emt 0:00:05]} d5 {[%emt 0:00:18]} 4. cxd5 {[%emt 0:00:06]} Nxd5 {[%emt 0:00:06]} 5. Nc3 {[%emt 0:00:05]} Nb6 {[%emt 0:00:10]} 6. Nf3 {[%emt 0:00:12]} Nc6 {[%emt 0:00:18]} 7. O-O {[%emt 0:00:33]} Be7 {[%emt 0:00:05]} 8. d3 {[%emt 0:00:13]} O-O {[%emt 0:00:13]} 9. a3 {[%emt 0:01:06]} Be6 {[%emt 0:02:55]} 10. Rb1 {[%emt 0:01:52]} f6 {[%emt 0:07:26]} 11. b4 {[%emt 0:03:56]} a6 {[%emt 0:03:40]} 12. Ne4 {[%emt 0:09:26]} Nd5 {[%emt 0:15:41]} 13. Bb2 {[%emt 0:05:45]} Qc8 {[%emt 0:13:11]} 14. Qc2 {[%emt 0:03:54]} Rd8 {[%emt 0:02:33]} 15. Rfc1 {[%emt 0:04:53]} Kh8 {[%emt 0:02:35]} 16. Nfd2 {[%emt 0:11:38]} Qd7 {[%emt 0:18:36]} 17. Nb3 {[%emt 0:02:44]} Ncxb4 {[%emt 0:04:37]} 18. axb4 {[%emt 0:03:05]} Nxb4 {[%emt 0:00:40]} 19. Nbc5 {[%emt 0:05:20]} Nxc2 {[%emt 0:03:23]} 20. Nxd7 {[%emt 0:00:10]} Ba2 {[%emt 0:00:33]} 21. Nxe5 {[%emt 0:03:14]} fxe5 {[%emt 0:01:16]} 22. Rxc2 {[%emt 0:01:22]} Bxb1 {[%emt 0:00:09]} 23. Rxc7 {[%emt 0:00:22]} Bf6 {[%emt 0:02:24]} 24. h4 {[%emt 0:06:50]} Rab8 {[%emt 0:04:42]} 25. f4 {[%emt 0:03:22]} Rdc8 {[%emt 0:03:58]} 26. Rd7 {[%emt 0:01:01]} Rc2 {[%emt 0:02:33]} 27. Bc3 {[%emt 0:00:09]} Rxe2 {[%emt 0:01:35]} 28. fxe5 {[%emt 0:00:22]} Bd8 {[%emt 0:03:39]} 29. e6 {[%emt 0:01:22]} Bb6+ {[%emt 0:00:50]} 30. Kh2 {[%emt 0:00:48]} Re3 {[%emt 0:01:56]} 31. Rxg7 {[%emt 0:00:41]} Ba7 {[%emt 0:03:16]} 32. Rg4+ {[%emt 0:00:13]} 1-0

[Event "Hungarian Youth-ch II 2024"]
[Site "Szolnok"]
[Date "2024.04.01"]
[Round "1.4"]
[White "Csiszar, Vivien"]
[Black "Wang, Luomeng"]
[Result "0-1"]
[ECO "B13"]
[WhiteElo "1575"]
[BlackElo "1797"]
[Annotator "NA"]
[PlyCount "70"]
[EventDate "2024.03.31"]
[EventType "swiss"]
[EventCountry "HUN"]
[SourceTitle "playchess.com"]
[Source "ChessBase"]
[SourceQuality "1"]
[TimeControl "5400+30"]

1. e4 {[%emt 0:00:03]} c6 {[%emt 0:00:07]} 2. d4 {[%emt 0:00:27]} d5 {[%emt 0:00:10]} 3. exd5 {[%emt 0:00:26]} cxd5 {[%emt 0:00:18]} 4. Nf3 {[%emt 0:00:29]} Nf6 {[%emt 0:01:09]} 5. Nbd2 {[%emt 0:00:35]} Nc6 {[%emt 0:01:10]} 6. Bb5 {[%emt 0:01:29]} Bd7 {[%emt 0:01:57]} 7. c4 {[%emt 0:03:12]} g6 {[%emt 0:03:11]} 8. O-O {[%emt 0:04:44]} Bg7 {[%emt 0:03:05]} 9. c5 {[%emt 0:08:25]} O-O {[%emt 0:01:41]} 10. Bxc6 {[%emt 0:01:25]} Bxc6 {[%emt 0:00:40]} 11. Ne5 {[%emt 0:01:16]} Qc7 {[%emt 0:06:08]} 12. Ndf3 {[%emt 0:02:08]} Nd7 {[%emt 0:06:08]} 13. Bf4 {[%emt 0:06:16]} Nxe5 {[%emt 0:01:41]} 14. Nxe5 {[%emt 0:03:13]} Qc8 {[%emt 0:01:43]} 15. Qd2 {[%emt 0:10:52]} f6 {[%emt 0:09:05]} 16. Nf3 {[%emt 0:02:23]} Re8 {[%emt 0:05:23]} 17. Rfe1 {[%emt 0:01:27]} Qf5 {[%emt 0:01:57]} 18. Qe3 {[%emt 0:08:50]} Kf7 {[%emt 0:14:28]} 19. b4 {[%emt 0:10:32]} Qd7 {[%emt 0:10:13]} 20. Qb3 {[%emt 0:02:55]} h5 {[%emt 0:06:47]} 21. a4 {[%emt 0:10:44]} a6 {[%emt 0:02:12]} 22. Reb1 {[%emt 0:04:30]} Qf5 {[%emt 0:02:51]} 23. Bc7 {[%emt 0:01:52]} g5 {[%emt 0:02:56]} 24. b5 {[%emt 0:00:56]} axb5 {[%emt 0:00:24]} 25. axb5 {[%emt 0:00:12]} Bd7 {[%emt 0:00:51]} 26. Rc1 {[%emt 0:01:02]} g4 {[%emt 0:03:16]} 27. Rxa8 {[%emt 0:03:31]} Rxa8 {[%emt 0:00:26]} 28. c6 {[%emt 0:03:13]} bxc6 {[%emt 0:00:42]} 29. bxc6 {[%emt 0:01:31]} Bxc6 {[%emt 0:01:28]} 30. Nd2 {[%emt 0:02:55]} Ba4 {[%emt 0:01:21]} 31. Qb7 {[%emt 0:02:56]} Rc8 {[%emt 0:00:46]} 32. Ra1 {[%emt 0:00:36]} Qd7 {[%emt 0:00:42]} 33. Rc1 {[%emt 0:00:23]} Bh6 {[%emt 0:00:32]} 34. Nb3 {[%emt 0:01:15]} Bxb3 {[%emt 0:00:52]} 35. Rb1 {[%emt 0:00:35]} Qxc7 {[%emt 0:00:20]} 0-1

[Event "Hungarian Youth-ch II 2024"]
[Site "Szolnok"]
[Date "2024.04.01"]
[Round "1.5"]
[White "Illes-Nagy, Nora"]
[Black "Miko, Biborka"]
[Result "1-0"]
[ECO "A52"]
[WhiteElo "1757"]
[BlackElo "1549"]
[Annotator "NA RC"]
[PlyCount "81"]
[EventDate "2024.03.31"]
[EventType "swiss"]
[EventCountry "HUN"]
[SourceTitle "playchess.com"]
[Source "ChessBase"]
[SourceQuality "1"]
[TimeControl "5400+30"]

1. d4 {[%emt 0:00:03]} Nf6 {[%emt 0:00:07]} 2. c4 {[%emt 0:00:07]} e5 {[%emt 0:00:08]} 3. dxe5 {[%emt 0:00:08]} Ng4 {[%emt 0:00:10]} 4. Bf4 {[%emt 0:00:17]} Nc6 {[%emt 0:00:17]} 5. Nf3 {[%emt 0:00:12]} Bb4+ {[%emt 0:00:30]} 6. Nbd2 {[%emt 0:01:35]} Qe7 {[%emt 0:01:19]} 7. e3 {[%emt 0:03:14]} Ngxe5 {[%emt 0:01:10]} 8. Nxe5 {[%emt 0:03:14]} Nxe5 {[%emt 0:03:13]} 9. a3 {[%emt 0:01:47]} Bxd2+ {[%emt 0:00:33]} 10. Qxd2 {[%emt 0:00:11]} O-O {[%emt 0:02:13]} 11. Be2 {[%emt 0:02:22]} a5 {[%emt 0:01:42]} 12. O-O {[%emt 0:05:06]} b6 {[%emt 0:02:11]} 13. Qd5 {[%emt 0:01:32]} Nc6 {[%emt 0:00:45]} 14. Bxc7 {[%emt 0:00:30]} Qc5 {[%emt 0:03:38]} 15. Bd6 {[%emt 0:00:43]} Qxd5 {[%emt 0:00:37]} 16. cxd5 {[%emt 0:00:06]} Nd8 {[%emt 0:01:30]} 17. Bxf8 {[%emt 0:00:09]} Kxf8 {[%emt 0:00:04]} 18. Rac1 {[%emt 0:00:27]} f6 {[%emt 0:02:46]} 19. Rc7 {[%emt 0:00:37]} d6 {[%emt 0:01:04]} 20. Rfc1 {[%emt 0:00:33]} Bf5 {[%emt 0:01:14]} 21. Bf3 {[%emt 0:02:11]} b5 {[%emt 0:02:54]} 22. e4 {[%emt 0:00:28]} Bg6 {[%emt 0:00:50]} 23. Rc8 {[%emt 0:00:11]} Rxc8 {[%emt 0:00:14]} 24. Rxc8 {[%emt 0:00:08]} Ke7 {[%emt 0:00:13]} 25. Rb8 {[%emt 0:01:45]} Be8 {[%emt 0:01:10]} 26. Be2 {[%emt 0:00:18]} b4 {[%emt 0:00:37]} 27. axb4 {[%emt 0:00:08]} axb4 {[%emt 0:00:06]} 28. Rxb4 {[%emt 0:00:06]} Bg6 {[%emt 0:01:31]} 29. Bg4 {[%emt 0:00:47]} Nf7 {[%emt 0:01:11]} 30. f4 {[%emt 0:01:12]} h5 {[%emt 0:01:11]} 31. Be6 {[%emt 0:02:32]} Nh6 {[%emt 0:01:18]} 32. f5 {[%emt 0:00:21]} Bf7 {[%emt 0:00:56]} 33. Rb7+ {[%emt 0:00:24]} Kf8 {[%emt 0:00:12]} 34. Bxf7 {[%emt 0:00:40]} Nxf7 {[%emt 0:00:14]} 35. b4 {[%emt 0:00:10]} Ne5 {[%emt 0:00:26]} 36. b5 {[%emt 0:00:11]} Nd3 {[%emt 0:00:33]} 37. Rc7 {[%emt 0:00:38]} Ke8 {[%emt 0:00:28]} 38. b6 {[%emt 0:00:21]} Kd8 {[%emt 0:00:14]} 39. Rc6 {[%emt 0:00:30]} Nc5 {[%emt 0:00:19]} 40. Rxd6+ {[%emt 0:00:10]} Kc8 {[%emt 0:00:16]} 41. Rc6+ {[%emt 0:00:06]} 1-0

[Event "Hungarian Youth-ch II 2024"]
[Site "Szolnok"]
[Date "2024.04.01"]
[Round "1.6"]
[White "Medvegy, Maria"]
[Black "Hangyal, Anna"]
[Result "0-1"]
[ECO "B30"]
[WhiteElo "1474"]
[BlackElo "1719"]
[Annotator "NA RC"]
[PlyCount "74"]
[EventDate "2024.03.31"]
[EventType "swiss"]
[EventCountry "HUN"]
[SourceTitle "playchess.com"]
[Source "ChessBase"]
[SourceQuality "1"]
[TimeControl "5400+30"]

1. e4 {[%emt 0:00:03]} c5 {[%emt 0:00:10]} 2. Nf3 {[%emt 0:00:11]} Nc6 {[%emt 0:01:03]} 3. Bb5 {[%emt 0:00:34]} e6 {[%emt 0:00:19]} 4. O-O {[%emt 0:00:22]} Be7 {[%emt 0:01:09]} 5. c3 {[%emt 0:01:29]} Nf6 {[%emt 0:01:39]} 6. Re1 {[%emt 0:00:21]} O-O {[%emt 0:03:03]} 7. d4 {[%emt 0:01:22]} a6 {[%emt 0:00:28]} 8. Bf1 {[%emt 0:01:30]} d5 {[%emt 0:01:55]} 9. e5 {[%emt 0:02:09]} Nd7 {[%emt 0:01:05]} 10. Bd3 {[%emt 0:03:10]} f6 {[%emt 0:01:04]} 11. Qc2 {[%emt 0:00:51]} f5 {[%emt 0:01:46]} 12. Bf4 {[%emt 0:02:13]} cxd4 {[%emt 0:01:27]} 13. Nxd4 {[%emt 0:02:37]} Nc5 {[%emt 0:00:18]} 14. b4 {[%emt 0:01:25]} Nxd4 {[%emt 0:00:45]} 15. cxd4 {[%emt 0:02:06]} Nxd3 {[%emt 0:00:05]} 16. Qxd3 {[%emt 0:01:08]} Bxb4 {[%emt 0:00:08]} 17. Re3 {[%emt 0:01:34]} Bd7 {[%emt 0:01:49]} 18. Rh3 {[%emt 0:02:14]} Rc8 {[%emt 0:00:54]} 19. Nd2 {[%emt 0:04:45]} Rc3 {[%emt 0:00:23]} 20. Qb1 {[%emt 0:02:36]} Rxh3 {[%emt 0:00:17]} 21. gxh3 {[%emt 0:00:21]} Bc3 {[%emt 0:00:10]} 22. Nb3 {[%emt 0:03:21]} Bxa1 {[%emt 0:00:15]} 23. Qxa1 {[%emt 0:00:42]} b6 {[%emt 0:00:14]} 24. Qf1 {[%emt 0:02:34]} Qh4 {[%emt 0:01:15]} 25. Bg3 {[%emt 0:02:13]} Qe4 {[%emt 0:00:16]} 26. f3 {[%emt 0:03:37]} Qe3+ {[%emt 0:00:55]} 27. Kg2 {[%emt 0:01:04]} Bb5 {[%emt 0:00:27]} 28. Qd1 {[%emt 0:01:45]} Be2 {[%emt 0:00:27]} 29. Qe1 {[%emt 0:02:32]} Qxf3+ {[%emt 0:00:41]} 30. Kg1 {[%emt 0:01:16]} Qe3+ {[%emt 0:00:17]} 31. Bf2 {[%emt 0:00:55]} Qg5+ {[%emt 0:00:12]} 32. Bg3 {[%emt 0:00:39]} f4 {[%emt 0:00:20]} 33. Qxe2 {[%emt 0:00:51]} fxg3 {[%emt 0:00:08]} 34. hxg3 {[%emt 0:00:50]} Qxg3+ {[%emt 0:00:08]} 35. Kh1 {[%emt 0:00:30]} Qxh3+ {[%emt 0:00:10]} 36. Kg1 {[%emt 0:00:18]} Qg3+ {[%emt 0:00:30]} 37. Kh1 {[%emt 0:00:24]} Rf4 {[%emt 0:00:04]} 0-1

[Event "Hungarian Youth-ch II 2024"]
[Site "Szolnok"]
[Date "2024.04.02"]
[Round "2.1"]
[White "Kiss, Inez"]
[Black "Kincses, Emma"]
[Result "1-0"]
[ECO "B27"]
[WhiteElo "1806"]
[BlackElo "1678"]
[Annotator "NA RC"]
[PlyCount "57"]
[EventDate "2024.03.31"]
[EventType "swiss"]
[EventCountry "HUN"]
[SourceTitle "playchess.com"]
[Source "ChessBase"]
[SourceQuality "1"]
[TimeControl "5400+30"]

1. e4 {[%emt 0:00:09]} c5 {[%emt 0:00:04]} 2. Nf3 {[%emt 0:00:14]} g6 {[%emt 0:00:10]} 3. d4 {[%emt 0:00:17]} cxd4 {[%emt 0:00:07]} 4. Qxd4 {[%emt 0:00:04]} Nf6 {[%emt 0:00:09]} 5. Nc3 {[%emt 0:00:29]} Nc6 {[%emt 0:00:28]} 6. Qa4 {[%emt 0:00:40]} Bg7 {[%emt 0:02:26]} 7. e5 {[%emt 0:00:27]} Ng8 {[%emt 0:00:08]} 8. Bf4 {[%emt 0:00:25]} Nh6 {[%emt 0:04:14]} 9. h3 {[%emt 0:00:57]} O-O {[%emt 0:02:25]} 10. O-O-O {[%emt 0:00:06]} a6 {[%emt 0:01:57]} 11. g4 {[%emt 0:15:42]} Kh8 {[%emt 0:07:58]} 12. Bd3 {[%emt 0:15:27]} b5 {[%emt 0:04:58]} 13. Nxb5 {[%emt 0:22:03]} Bb7 {[%emt 0:01:33]} 14. Nc3 {[%emt 0:01:54]} f6 $18 {[%emt 0:14:33]} (14... e6 {might work better.} 15. Be2 Qc7) 15. exf6 {[%emt 0:09:48]} Rxf6 {[%emt 0:00:50]} 16. g5 {[%emt 0:00:38]} e5 {[%emt 0:13:02]} 17. gxf6 {[%emt 0:03:14]} Qxf6 {[%emt 0:00:09]} 18. Bxh6 {[%emt 0:00:16]} Bxh6+ {[%emt 0:00:12]} 19. Nd2 {[%emt 0:00:05]} Bxd2+ {[%emt 0:01:05]} 20. Rxd2 {[%emt 0:00:00]} Nd4 {[%emt 0:00:10]} 21. Be4 {[%emt 0:01:43]} Bxe4 {[%emt 0:01:37]} 22. Nxe4 {[%emt 0:00:04]} Qf3 {[%emt 0:00:12]} 23. Re1 {[%emt 0:01:24]} Qf4 {[%emt 0:00:09]} 24. Nc3 {[%emt 0:08:19]} Rc8 {[%emt 0:03:08]} 25. Re4 {[%emt 0:04:03]} Qf5 {[%emt 0:02:09]} 26. Rexd4 {[%emt 0:00:30]} exd4 {[%emt 0:00:24]} 27. Qxd4+ {[%emt 0:00:06]} Kg8 {[%emt 0:00:04]} 28. Qd5+ {[%emt 0:00:08]} Qxd5 {[%emt 0:00:08]} 29. Rxd5 {[%emt 0:00:12]} 1-0

[Event "Hungarian Youth-ch II 2024"]
[Site "Szolnok"]
[Date "2024.04.02"]
[Round "2.2"]
[White "Hangyal, Dora"]
[Black "Biro, Beata"]
[Result "1-0"]
[ECO "A11"]
[WhiteElo "1704"]
[BlackElo "1760"]
[Annotator "NA RC"]
[PlyCount "49"]
[EventDate "2024.03.31"]
[EventType "swiss"]
[EventCountry "HUN"]
[SourceTitle "playchess.com"]
[Source "ChessBase"]
[SourceQuality "1"]
[TimeControl "5400+30"]

1. c4 {[%emt 0:00:05]} c6 {[%emt 0:00:08]} 2. Nc3 {[%emt 0:00:09]} Nf6 {[%emt 0:00:15]} 3. e4 {[%emt 0:01:40]} e5 {[%emt 0:01:38]} 4. d4 {[%emt 0:02:23]} exd4 {[%emt 0:04:03]} 5. Qxd4 {[%emt 0:00:09]} d6 {[%emt 0:04:42]} 6. Bf4 {[%emt 0:02:15]} Nh5 {[%emt 0:05:06]} 7. Be3 {[%emt 0:03:37]} Be7 {[%emt 0:03:46]} 8. Be2 {[%emt 0:01:31]} Nf6 {[%emt 0:00:08]} 9. Rd1 {[%emt 0:04:27]} O-O {[%emt 0:05:45]} 10. Bf4 {[%emt 0:01:33]} c5 {[%emt 0:00:12]} 11. Qd3 {[%emt 0:00:46]} Qb6 {[%emt 0:00:32]} 12. a4 {[%emt 0:07:03]} Rd8 {[%emt 0:04:08]} 13. h3 {[%emt 0:04:22]} Nc6 {[%emt 0:03:43]} 14. g4 {[%emt 0:04:37]} Nd4 {[%emt 0:02:17]} 15. g5 {[%emt 0:01:00]} Nxe2 {[%emt 0:01:14]} 16. Qxe2 {[%emt 0:01:23]} Nh5 {[%emt 0:13:31]} 17. Qxh5 {[%emt 0:01:38]} Qxb2 {[%emt 0:00:06]} 18. Nd5 {[%emt 0:00:45]} Bf8 {[%emt 0:00:03]} 19. Ne2 {[%emt 0:01:33]} Bd7 {[%emt 0:01:57]} 20. Rg1 {[%emt 0:00:22]} Bxa4 {[%emt 0:00:59]} 21. Nf6+ {[%emt 0:00:25]} gxf6 {[%emt 0:00:29]} 22. gxf6+ {[%emt 0:00:07]} Kh8 {[%emt 0:00:07]} 23. Qg5 {[%emt 0:00:22]} Bh6 {[%emt 0:00:23]} 24. Qxh6 {[%emt 0:01:27]} Rg8 {[%emt 0:00:02]} 25. Rg7 {[%emt 0:00:28]} 1-0

[Event "Hungarian Youth-ch II 2024"]
[Site "Szolnok"]
[Date "2024.04.02"]
[Round "2.4"]
[White "Wang, Luomeng"]
[Black "Ferenczy, Nora"]
[Result "1-0"]
[ECO "D45"]
[WhiteElo "1797"]
[BlackElo "1699"]
[Annotator "NA RC"]
[PlyCount "69"]
[EventDate "2024.03.31"]
[EventType "swiss"]
[EventCountry "HUN"]
[SourceTitle "playchess.com"]
[Source "ChessBase"]
[SourceQuality "1"]
[TimeControl "5400+30"]

1. d4 {[%emt 0:00:05]} d5 {[%emt 0:00:04]} 2. c4 {[%emt 0:00:08]} c6 {[%emt 0:00:03]} 3. Nf3 {[%emt 0:00:10]} Nf6 {[%emt 0:00:30]} 4. Nc3 {[%emt 0:00:28]} e6 {[%emt 0:00:08]} 5. e3 {[%emt 0:00:13]} Nbd7 {[%emt 0:01:08]} 6. Be2 {[%emt 0:00:17]} dxc4 {[%emt 0:02:08]} 7. a4 {[%emt 0:01:13]} Bd6 {[%emt 0:02:55]} 8. Bxc4 {[%emt 0:01:50]} O-O {[%emt 0:01:49]} 9. O-O {[%emt 0:01:17]} Re8 {[%emt 0:02:40]} 10. e4 {[%emt 0:01:50]} e5 {[%emt 0:09:55]} 11. Re1 {[%emt 0:09:54]} exd4 {[%emt 0:05:15]} 12. Nxd4 {[%emt 0:02:20]} Ne5 {[%emt 0:04:28]} 13. Be2 {[%emt 0:05:42]} Bc5 {[%emt 0:08:10]} 14. Nb3 {[%emt 0:01:42]} Bb4 {[%emt 0:06:00]} 15. Qxd8 {[%emt 0:05:00]} Rxd8 {[%emt 0:00:13]} 16. Bg5 {[%emt 0:00:56]} Bxc3 {[%emt 0:06:53]} 17. Bxf6 {[%emt 0:02:02]} Bxe1 {[%emt 0:01:09]} 18. Bxd8 {[%emt 0:00:29]} Bb4 {[%emt 0:02:11]} 19. Bc7 {[%emt 0:03:05]} Ng6 {[%emt 0:02:06]} 20. Rd1 {[%emt 0:01:15]} Be6 {[%emt 0:02:45]} 21. Nd4 {[%emt 0:01:14]} Re8 {[%emt 0:04:49]} 22. Nxe6 {[%emt 0:01:13]} Rxe6 {[%emt 0:00:15]} 23. f3 {[%emt 0:02:20]} Bc5+ {[%emt 0:01:28]} 24. Kf1 {[%emt 0:01:06]} Re8 {[%emt 0:00:00]} 25. Bc4 {[%emt 0:07:54]} Ne5 {[%emt 0:03:26]} 26. Bxe5 {[%emt 0:01:48]} Rxe5 {[%emt 0:02:03]} 27. Rd7 {[%emt 0:00:41]} h6 {[%emt 0:07:21]} 28. Rxf7 {[%emt 0:02:10]} Kh7 {[%emt 0:00:59]} 29. Rxb7 {[%emt 0:00:37]} Bb6 {[%emt 0:00:35]} 30. f4 {[%emt 0:01:25]} Rc5 {[%emt 0:06:20]} 31. b3 {[%emt 0:01:13]} Rh5 {[%emt 0:01:02]} 32. e5 {[%emt 0:00:56]} Rh4 {[%emt 0:04:22]} 33. g3 {[%emt 0:02:19]} Rxh2 {[%emt 0:00:27]} 34. Bd3+ {[%emt 0:00:30]} Kg8 {[%emt 0:00:36]} 35. e6 {[%emt 0:00:39]} 1-0